fUSD/lending_fUSD_20260519
["ID","MTS","AMOUNT","RATE_DAILY","PERIOD"]
[422597603,1779136248000,-500.0,0.00036402,7]
[422597607,1779136248000,-500.0,0.00036402,7]
[422597606,1779136248000,-500.0,0.00036402,7]
[422597608,1779136248000,-500.0,0.00036402,7]
[422597609,1779136248000,-500.0,0.00036402,7]
[422597610,1779136248000,-500.0,0.00036402,7]
[422597611,1779136248000,-500.0,0.00036402,7]
[422597593,1779136248000,-500.0,0.00036402,7]
[422597585,1779136248000,-500.0,0.00036402,7]
[422597547,1779136248000,-300.83289583,0.00036257,2]
[422597591,1779136248000,-500.0,0.00036402,7]
[422597553,1779136248000,-301.05366791,0.00036257,2]
[422597549,1779136248000,-344.18013641,0.00036257,2]
[422597554,1779136248000,-464.11796449,0.00036257,2]
[422597556,1779136248000,-300.0,0.00036257,2]
[422597558,1779136248000,-300.0,0.00036257,2]
[422597559,1779136248000,-1095.40392062,0.00036257,2]
[422597557,1779136248000,-382.92933654,0.00036257,2]
[422597555,1779136248000,-577.57827662,0.00036257,2]
[422597592,1779136248000,-500.0,0.00036402,7]
[422597565,1779136248000,-300.0,0.00036257,2]
[422597561,1779136248000,-300.0,0.00036257,2]
[422597562,1779136248000,-300.0,0.00036257,2]
[422597560,1779136248000,-300.0,0.00036257,2]
[422597564,1779136248000,-300.0,0.00036257,2]
[422597566,1779136248000,-528.05618904,0.00036257,2]
[422597568,1779136248000,-893.93225908,0.00036257,2]
[422597563,1779136248000,-492.9890159,0.00036257,2]
[422597577,1779136248000,-1530.7660243,0.00036347,2]
[422597573,1779136248000,-176.1342,0.00036272,2]
[422597575,1779136248000,-150.0,0.00036282,7]
[422597576,1779136248000,-150.0,0.00036344,7]
[422597571,1779136248000,-301.92446648,0.00036257,2]
[422597580,1779136248000,-200.79,0.000364,14]
[422597570,1779136248000,-726.47725465,0.00036257,2]
[422597567,1779136248000,-1067.5484804,0.00036257,2]
[422597579,1779136248000,-201.45250632,0.000364,30]
[422597578,1779136248000,-150.0,0.00036358,7]
[422597572,1779136248000,-150.0,0.00036271,7]
[422597569,1779136248000,-436.78154743,0.00036257,2]
[422597574,1779136248000,-2419.57985436,0.00036278,2]
[422597658,1779136249000,-500.0,0.00036868,120]
[422597666,1779136249000,-151.0,0.00036869,7]
[422597665,1779136249000,-392052.4461668,0.00036869,2]
[422597664,1779136249000,-9496.4298328,0.00036869,2]
[422597654,1779136249000,-500.0,0.00036868,120]
[422597646,1779136249000,-150.00000003,0.00036849,7]
[422597649,1779136249000,-151.0,0.00036866,14]
[422597651,1779136249000,-500.0,0.00036868,30]
[422597643,1779136249000,-164.93102534,0.00036849,7]
[422597648,1779136249000,-151.0,0.00036866,14]
[422597650,1779136249000,-500.0,0.00036868,120]
[422597647,1779136249000,-153.19086251,0.00036849,7]
[422597656,1779136249000,-500.0,0.00036868,2]
[422597669,1779136249000,-1282.501218,0.00036869,7]
[422597655,1779136249000,-602.92,0.00036868,120]
[422597657,1779136249000,-500.0,0.00036868,7]
[422597653,1779136249000,-500.0,0.00036868,120]
[422597661,1779136249000,-370.03132959,0.00036868,120]
[422597660,1779136249000,-500.0,0.00036868,120]
[422597663,1779136249000,-296244.95508,0.00036869,2]
[422597659,1779136249000,-500.0,0.00036868,120]
[422597678,1779136249000,-151.0,0.00036869,7]
[422597668,1779136249000,-152.207691,0.00036869,7]
[422597680,1779136249000,-151.0,0.00036869,7]
[422597679,1779136249000,-283.307346,0.00036869,7]
[422597667,1779136249000,-239.55702,0.00036869,7]
[422597670,1779136249000,-1282.501218,0.00036869,7]
[422597644,1779136249000,-278.83771142,0.00036849,7]
[422597662,1779136249000,-500.0,0.00036868,30]
[422597645,1779136249000,-250.88125164,0.00036849,7]
[422597630,1779136249000,-150.0,0.00036633,7]
[422597642,1779136249000,-150.0,0.00036849,7]
[422597671,1779136249000,-1282.501218,0.00036869,7]
[422597614,1779136249000,-500.0,0.00036402,7]
[422597615,1779136249000,-610.82,0.00036402,7]
[422597616,1779136249000,-500.0,0.00036402,7]
[422597613,1779136249000,-481.73,0.00036402,7]
[422597617,1779136249000,-500.0,0.00036402,7]
[422597618,1779136249000,-150.0,0.00036416,7]
[422597620,1779136249000,-150.0,0.0003644,7]
[422597625,1779136249000,-150.0,0.0003656,7]
[422597622,1779136249000,-1000.0,0.00036499,15]
[422597626,1779136249000,-150.0,0.00036566,7]
[422597621,1779136249000,-150.0,0.00036488,7]
[422597619,1779136249000,-162.9743891,0.00036438,30]
[422597652,1779136249000,-500.0,0.00036868,120]
[422597623,1779136249000,-502.0,0.00036505,12]
[422597624,1779136249000,-150.0,0.00036542,7]
[422597640,1779136249000,-151.33807361,0.00036849,7]
[422597629,1779136249000,-150.0,0.00036604,7]
[422597631,1779136249000,-162.9743891,0.00036658,30]
[422597635,1779136249000,-150.0,0.00036777,7]
[422597637,1779136249000,-1000.0,0.00036835,10]
[422597632,1779136249000,-21869.729935,0.00036678,2]
[422597633,1779136249000,-150.0,0.00036705,7]
[422597634,1779136249000,-1540.703,0.00036777,46]
[422597636,1779136249000,-211.60966024,0.00036777,2]
[422597639,1779136249000,-150.0,0.00036849,7]
[422597638,1779136249000,-28043.34544117,0.00036838,2]
[422597641,1779136249000,-151.05845011,0.00036849,7]
[422597627,1779136249000,-500.0,0.0003658,60]
[422597675,1779136249000,-151.0,0.00036869,7]
[422597628,1779136249000,-1200.0,0.0003658,60]
[422597672,1779136249000,-1282.501218,0.00036869,7]
[422597708,1779136249000,-7183.91,0.00037073,2]
[422597710,1779136249000,-1000.0,0.00037085,60]
[422597714,1779136249000,-1000.0,0.00037122,60]
[422597711,1779136249000,-1000.0,0.0003709,35]
[422597712,1779136249000,-1000.0,0.00037096,60]
[422597713,1779136249000,-1000.0,0.00037104,60]
[422597716,1779136249000,-236.392473,0.00037143,35]
[422597715,1779136249000,-1000.0,0.0003714,60]
[422597717,1779136249000,-862.66504213,0.00037148,60]
[422597721,1779136249000,-1000.0,0.00037199,120]
[422597733,1779136249000,-10000.0,0.00037301,2]
[422597732,1779136249000,-1000.0,0.00037293,60]
[422597731,1779136249000,-330.0,0.00037288,44]
[422597725,1779136249000,-1000.0,0.00037235,60]
[422597728,1779136249000,-165.0,0.0003728,60]
[422597720,1779136249000,-176.1342,0.00037179,2]
[422597726,1779136249000,-482.53776993,0.00037242,60]
[422597729,1779136249000,-162.0,0.0003728,60]
[422597723,1779136249000,-1000.0,0.00037208,60]
[422597722,1779136249000,-1000.0,0.00037204,60]
[422597730,1779136249000,-162.0,0.0003728,60]
[422597727,1779136249000,-1000.0,0.00037268,60]
[422597724,1779136249000,-1000.0,0.00037221,60]
[422597736,1779136249000,-400.0,0.0003737,2]
[422597737,1779136249000,-1000.0,0.00037386,36]
[422597735,1779136249000,-300.0,0.0003737,2]
[422597739,1779136249000,-1000.0,0.00037395,14]
[422597734,1779136249000,-1000.0,0.00037336,60]
[422597677,1779136249000,-151.0,0.00036869,7]
[422597719,1779136249000,-502.0,0.00037174,13]
[422597707,1779136249000,-168.56264,0.0003703,85]
[422597738,1779136249000,-1000.0,0.00037393,60]
[422597709,1779136249000,-1000.0,0.00037074,60]
[422597718,1779136249000,-1000.0,0.00037163,60]
[422597676,1779136249000,-151.0,0.00036869,7]
[422597674,1779136249000,-151.0,0.00036869,7]
[422597673,1779136249000,-151.0,0.00036869,7]
[422597681,1779136249000,-151.0,0.00036869,7]
[422597683,1779136249000,-151.0,0.00036869,7]
[422597684,1779136249000,-182.370722,0.00036869,7]
[422597682,1779136249000,-151.0,0.00036869,7]
[422597685,1779136249000,-151.0,0.00036869,7]
[422597691,1779136249000,-151.0,0.00036869,7]
[422597688,1779136249000,-182.370722,0.00036869,7]
[422597692,1779136249000,-151.0,0.00036869,7]
[422597687,1779136249000,-182.370722,0.00036869,7]
[422597689,1779136249000,-151.0,0.00036869,7]
[422597686,1779136249000,-182.370722,0.00036869,7]
[422597690,1779136249000,-151.0,0.00036869,7]
[422597700,1779136249000,-1000.0,0.00036999,38]
[422597693,1779136249000,-151.0,0.00036869,7]
[422597703,1779136249000,-290.59,0.00037,2]
[422597701,1779136249000,-256.73,0.00037,2]
[422597699,1779136249000,-1000.0,0.00036999,4]
[422597697,1779136249000,-1000.0,0.00036989,3]
[422597704,1779136249000,-240.61,0.00037,30]
[422597706,1779136249000,-168.56264,0.0003703,85]
[422597702,1779136249000,-290.59,0.00037,2]
[422597696,1779136249000,-2203.21481521,0.0003696,7]
[422597695,1779136249000,-1000.0,0.00036938,60]
[422597698,1779136249000,-1000.0,0.00036999,21]
[422597694,1779136249000,-1000.0,0.00036899,13]
[422597705,1779136249000,-168.56263,0.0003703,85]
[422597777,1779136250000,-559.19188,0.00037401,30]
[422597784,1779136250000,-500.0,0.00037401,30]
[422597781,1779136250000,-500.0,0.00037401,30]
[422597780,1779136250000,-7681.20591386,0.00037401,30]
[422597778,1779136250000,-500.0,0.00037401,30]
[422597765,1779136250000,-151.0,0.00037401,30]
[422597775,1779136250000,-500.0,0.00037401,30]
[422597774,1779136250000,-7407.141672,0.00037401,30]
[422597786,1779136250000,-500.0,0.00037401,30]
[422597785,1779136250000,-2718.57489474,0.00037401,30]
[422597783,1779136250000,-579.88197956,0.00037401,30]
[422597776,1779136250000,-162.380719,0.00037401,30]
[422597779,1779136250000,-162.380719,0.00037401,30]
[422597793,1779136250000,-174.61919141,0.00037401,30]
[422597788,1779136250000,-500.0,0.00037401,30]
[422597787,1779136250000,-168.3888056,0.00037401,30]
[422597799,1779136250000,-181.08010149,0.00037401,30]
[422597798,1779136250000,-500.0,0.00037401,30]
[422597791,1779136250000,-500.0,0.00037401,30]
[422597790,1779136250000,-200.0,0.00037401,30]
[422597789,1779136250000,-601.3376128,0.00037401,30]
[422597792,1779136250000,-500.0,0.00037401,30]
[422597794,1779136250000,-518.5,0.00037401,30]
[422597797,1779136250000,-500.0,0.00037401,30]
[422597796,1779136250000,-200.0,0.00037401,30]
[422597795,1779136250000,-623.58710448,0.00037401,30]
[422597768,1779136250000,-500.0,0.00037401,30]
[422597782,1779136250000,-168.38880561,0.00037401,30]
[422597769,1779136250000,-156.587,0.00037401,30]
[422597758,1779136250000,-500.0,0.000374,30]
[422597766,1779136250000,-500.0,0.00037401,30]
[422597801,1779136250000,-646.65982734,0.00037401,30]
[422597743,1779136250000,-1000.0,0.00037399,60]
[422597742,1779136250000,-1000.0,0.00037399,2]
[422597745,1779136250000,-1000.0,0.000374,2]
[422597744,1779136250000,-1000.0,0.000374,2]
[422597740,1779136250000,-1000.0,0.00037397,7]
[422597741,1779136250000,-150.0,0.00037399,2]
[422597746,1779136250000,-500.0,0.000374,120]
[422597749,1779136250000,-500.0,0.000374,120]
[422597757,1779136250000,-500.0,0.000374,120]
[422597752,1779136250000,-200.0,0.000374,15]
[422597748,1779136250000,-500.0,0.000374,120]
[422597755,1779136250000,-1000.0,0.000374,60]
[422597751,1779136250000,-500.0,0.000374,2]
[422597747,1779136250000,-500.0,0.000374,30]
[422597750,1779136250000,-500.0,0.000374,120]
[422597753,1779136250000,-500.0,0.000374,7]
[422597759,1779136250000,-198.24523163,0.00037401,120]
[422597754,1779136250000,-500.0,0.000374,120]
[422597756,1779136250000,-500.0,0.000374,120]
[422597761,1779136250000,-6888.0,0.00037401,30]
[422597772,1779136250000,-500.0,0.00037401,30]
[422597773,1779136250000,-161.97086608,0.00037401,30]
[422597762,1779136250000,-500.0,0.00037401,30]
[422597760,1779136250000,-253.68977895,0.00037401,30]
[422597771,1779136250000,-156.587,0.00037401,30]
[422597763,1779136250000,-151.0,0.00037401,30]
[422597767,1779136250000,-7142.856,0.00037401,30]
[422597764,1779136250000,-520.0,0.00037401,30]
[422597770,1779136250000,-539.24,0.00037401,30]
[422597811,1779136250000,-578.20924308,0.00037401,30]
[422597804,1779136250000,-500.0,0.00037401,30]
[422597802,1779136250000,-200.0,0.00037401,30]
[422597835,1779136250000,-151.0,0.00037401,30]
[422597838,1779136250000,-500.0,0.00037401,30]
[422597840,1779136250000,-156.587,0.00037401,30]
[422597842,1779136250000,-1865.36488657,0.00037401,30]
[422597841,1779136250000,-557.5788265,0.00037401,30]
[422597844,1779136250000,-162.380719,0.00037401,30]
[422597843,1779136250000,-500.0,0.00037401,30]
[422597849,1779136250000,-1191.11104075,0.00037401,30]
[422597846,1779136250000,-500.0,0.00037401,30]
[422597845,1779136250000,-1148.61238259,0.00037401,30]
[422597839,1779136250000,-1107.63007,0.00037401,30]
[422597848,1779136250000,-168.3888056,0.00037401,30]
[422597847,1779136250000,-1934.38338738,0.00037401,30]
[422597833,1779136250000,-1734.62772924,0.00037401,30]
[422597851,1779136250000,-1235.18214925,0.00037401,30]
[422597852,1779136250000,-174.61919141,0.00037401,30]
[422597853,1779136250000,-500.0,0.00037401,30]
[422597855,1779136250000,-181.08010149,0.00037401,30]
[422597857,1779136250000,-1328.27659266,0.00037401,30]
[422597860,1779136250000,-151.0,0.00037401,30]
[422597859,1779136250000,-151.0,0.00037401,30]
[422597854,1779136250000,-1280.88388878,0.00037401,30]
[422597856,1779136250000,-187.78006525,0.00037401,30]
[422597858,1779136250000,-201.93286098,0.00037401,30]
[422597861,1779136250000,-156.587,0.00037401,30]
[422597800,1779136250000,-537.6845,0.00037401,30]
[422597863,1779136250000,-162.380719,0.00037401,30]
[422597864,1779136250000,-151.0,0.00037401,30]
[422597850,1779136250000,-500.0,0.00037401,30]
[422597831,1779136250000,-518.5,0.00037401,30]
[422597862,1779136250000,-151.0,0.00037401,30]
[422597825,1779136250000,-1613.0535,0.00037401,30]
[422597834,1779136250000,-500.0,0.00037401,30]
[422597803,1779136250000,-500.0,0.00037401,30]
[422597806,1779136250000,-187.78006525,0.00037401,30]
[422597808,1779136250000,-200.0,0.00037401,30]
[422597809,1779136250000,-500.0,0.00037401,30]
[422597810,1779136250000,-500.0,0.00037401,30]
[422597807,1779136250000,-670.58624095,0.00037401,30]
[422597814,1779136250000,-500.0,0.00037401,30]
[422597812,1779136250000,-201.93286098,0.00037401,30]
[422597813,1779136250000,-200.0,0.00037401,30]
[422597815,1779136250000,-657.13302012,0.00037401,30]
[422597823,1779136250000,-347.67115808,0.00037401,30]
[422597818,1779136250000,-1500.0,0.00037401,30]
[422597820,1779136250000,-200.0,0.00037401,30]
[422597805,1779136250000,-557.5788265,0.00037401,30]
[422597824,1779136250000,-200.0,0.00037401,30]
[422597816,1779136250000,-428.15185578,0.00037401,30]
[422597829,1779136250000,-1672.7364795,0.00037401,30]
[422597837,1779136250000,-1798.80895522,0.00037401,30]
[422597828,1779136250000,-1030.0,0.00037401,30]
[422597832,1779136250000,-1068.11,0.00037401,30]
[422597827,1779136250000,-500.0,0.00037401,30]
[422597826,1779136250000,-500.0,0.00037401,30]
[422597817,1779136250000,-200.0,0.00037401,30]
[422597836,1779136250000,-537.6845,0.00037401,30]
[422597830,1779136250000,-500.0,0.00037401,30]
[422597822,1779136250000,-500.0,0.00037401,30]
[422597819,1779136250000,-500.0,0.00037401,30]
[422597821,1779136250000,-1555.5,0.00037401,30]
[422597892,1779136251000,-152.0,0.00037401,30]
[422597909,1779136251000,-151.0,0.00037401,30]
[422597896,1779136251000,-151.0,0.00037401,30]
[422597899,1779136251000,-156.587,0.00037401,30]
[422597900,1779136251000,-151.0,0.00037401,30]
[422597898,1779136251000,-151.0,0.00037401,30]
[422597897,1779136251000,-151.0,0.00037401,30]
[422597904,1779136251000,-151.0,0.00037401,30]
[422597902,1779136251000,-151.0,0.00037401,30]
[422597905,1779136251000,-1000.0,0.00037401,30]
[422597895,1779136251000,-151.0,0.00037401,30]
[422597912,1779136251000,-1000.0,0.00037401,30]
[422597908,1779136251000,-1000.0,0.00037401,30]
[422597910,1779136251000,-181.08010149,0.00037401,30]
[422597903,1779136251000,-168.3888056,0.00037401,30]
[422597906,1779136251000,-151.0,0.00037401,30]
[422597911,1779136251000,-151.0,0.00037401,30]
[422597907,1779136251000,-174.61919141,0.00037401,30]
[422597915,1779136251000,-1000.0,0.00037401,30]
[422597918,1779136251000,-1000.0,0.00037401,30]
[422597914,1779136251000,-151.0,0.00037401,30]
[422597919,1779136251000,-151.0,0.00037401,30]
[422597920,1779136251000,-1000.0,0.00037401,30]
[422597893,1779136251000,-151.0,0.00037401,30]
[422597913,1779136251000,-187.78006525,0.00037401,30]
[422597894,1779136251000,-169.83150446,0.00037401,30]
[422597878,1779136251000,-201.93286098,0.00037401,30]
[422597901,1779136251000,-162.380719,0.00037401,30]
[422597868,1779136251000,-151.0,0.00037401,30]
[422597865,1779136251000,-160.0,0.00037401,30]
[422597869,1779136251000,-174.61919141,0.00037401,30]
[422597867,1779136251000,-165.92,0.00037401,30]
[422597866,1779136251000,-168.3888056,0.00037401,30]
[422597870,1779136251000,-172.05904,0.00037401,30]
[422597871,1779136251000,-151.0,0.00037401,30]
[422597875,1779136251000,-187.78006525,0.00037401,30]
[422597872,1779136251000,-181.08010149,0.00037401,30]
[422597874,1779136251000,-151.0,0.00037401,30]
[422597876,1779136251000,-185.02695779,0.00037401,30]
[422597873,1779136251000,-178.42522448,0.00037401,30]
[422597916,1779136251000,-201.93286098,0.00037401,30]
[422597879,1779136251000,-191.87295522,0.00037401,30]
[422597880,1779136251000,-198.97225456,0.00037401,30]
[422597883,1779136251000,-152.0,0.00037401,30]
[422597882,1779136251000,-152.0,0.00037401,30]
[422597889,1779136251000,-269.917619,0.00037401,30]
[422597884,1779136251000,-251.0,0.00037401,30]
[422597881,1779136251000,-152.0,0.00037401,30]
[422597886,1779136251000,-260.287,0.00037401,30]
[422597887,1779136251000,-152.0,0.00037401,30]
[422597885,1779136251000,-152.0,0.00037401,30]
[422597888,1779136251000,-151.0,0.00037401,30]
[422597890,1779136251000,-152.0,0.00037401,30]
[422597891,1779136251000,-151.0,0.00037401,30]
[422597917,1779136251000,-151.0,0.00037401,30]
[422597877,1779136251000,-151.0,0.00037401,30]
[422597921,1779136251000,-151.0,0.00037401,30]
[422597954,1779136251000,-151.0,0.00037431,7]
[422597953,1779136251000,-151.0,0.00037428,14]
[422597955,1779136251000,-151.0,0.00037431,7]
[422597957,1779136251000,-221.351096,0.00037431,7]
[422597960,1779136251000,-151.0,0.00037431,7]
[422597959,1779136251000,-221.351096,0.00037431,7]
[422597958,1779136251000,-221.351096,0.00037431,7]
[422597961,1779136251000,-151.0,0.00037432,7]
[422597962,1779136251000,-1282.501218,0.00037432,7]
[422597964,1779136251000,-1282.501218,0.00037432,7]
[422597965,1779136251000,-1282.501218,0.00037432,7]
[422597966,1779136251000,-151.0,0.00037432,7]
[422597963,1779136251000,-1282.501218,0.00037432,7]
[422597967,1779136251000,-151.0,0.00037432,7]
[422597974,1779136251000,-182.370722,0.00037432,7]
[422597968,1779136251000,-151.0,0.00037432,7]
[422597972,1779136251000,-151.0,0.00037432,7]
[422597970,1779136251000,-151.0,0.00037432,7]
[422597973,1779136251000,-151.0,0.00037432,7]
[422597969,1779136251000,-151.0,0.00037432,7]
[422597971,1779136251000,-151.0,0.00037432,7]
[422597976,1779136251000,-182.370722,0.00037432,7]
[422597975,1779136251000,-151.0,0.00037432,7]
[422597977,1779136251000,-182.370722,0.00037432,7]
[422597922,1779136251000,-1000.0,0.00037401,30]
[422597952,1779136251000,-40354.99703983,0.00037419,2]
[422597951,1779136251000,-151.0,0.00037416,14]
[422597956,1779136251000,-221.351096,0.00037431,7]
[422597946,1779136251000,-196.74470868,0.00037402,30]
[422597925,1779136251000,-151.0,0.00037401,30]
[422597923,1779136251000,-151.0,0.00037401,30]
[422597924,1779136251000,-1000.0,0.00037401,30]
[422597926,1779136251000,-1000.0,0.00037401,30]
[422597928,1779136251000,-151.0,0.00037401,30]
[422597930,1779136251000,-642.94,0.00037401,30]
[422597950,1779136251000,-200.0,0.00037402,2]
[422597929,1779136251000,-620.0,0.00037401,30]
[422597931,1779136251000,-666.72878,0.00037401,30]
[422597927,1779136251000,-151.0,0.00037401,30]
[422597932,1779136251000,-691.39774486,0.00037401,30]
[422597933,1779136251000,-716.97946142,0.00037401,30]
[422597935,1779136251000,-151.0,0.00037401,30]
[422597936,1779136251000,-151.0,0.00037401,30]
[422597938,1779136251000,-151.0,0.00037401,30]
[422597937,1779136251000,-151.0,0.00037401,30]
[422597948,1779136251000,-1200.0,0.00037402,60]
[422597941,1779136251000,-151.0,0.00037401,30]
[422597944,1779136251000,-500.0,0.00037402,30]
[422597945,1779136251000,-500.0,0.00037402,30]
[422597943,1779136251000,-500.0,0.00037402,30]
[422597942,1779136251000,-1000.0,0.00037401,30]
[422597949,1779136251000,-200.0,0.00037402,2]
[422597940,1779136251000,-151.0,0.00037401,30]
[422597939,1779136251000,-151.0,0.00037401,30]
[422597947,1779136251000,-500.0,0.00037402,60]
[422597990,1779136252000,-978.0,0.00026484,10]
[422597986,1779136252000,-502.70574182,0.00014864,2]
[422597988,1779136252000,-6039.94247315,0.00018579,2]
[422597987,1779136252000,-3.65307898,0.00018579,2]
[422597985,1779136252000,-648.32793,0.00018579,2]
[422597983,1779136252000,-151.0,0.00037432,7]
[422597978,1779136252000,-182.370722,0.00037432,7]
[422597982,1779136252000,-151.0,0.00037432,7]
[422597984,1779136252000,-1145971.93651553,0.00037432,30]
[422597980,1779136252000,-151.0,0.00037432,7]
[422597979,1779136252000,-151.0,0.00037432,7]
[422597989,1779136252000,-418.0,0.00021031,2]
[422597981,1779136252000,-151.0,0.00037432,7]
[422597991,1779136252000,-350.0,0.00033014,5]
[422597996,1779136252000,-418.0,0.00024031,2]
[422597995,1779136252000,-30771.10118,0.00037432,30]
[422597992,1779136252000,-1586.0,0.00033513,11]
[422598007,1779136252000,-27778.87036434,0.00037432,30]
[422598006,1779136252000,-318.5551525,0.00036257,2]
[422598002,1779136252000,-418.0,0.00030031,2]
[422598005,1779136252000,-1586.0,0.00034473,11]
[422598004,1779136252000,-416.0,0.00033031,2]
[422598000,1779136252000,-230.51030123,0.00029174,2]
[422598003,1779136252000,-5530.0,0.000303,3]
[422597999,1779136252000,-836.25669838,0.00029174,2]
[422597998,1779136252000,-151.0,0.0002882,2]
[422597997,1779136252000,-418.0,0.00027031,2]
[422597994,1779136252000,-259691.11464165,0.00037432,30]
[422597993,1779136252000,-300.75053335,0.00036257,2]
[422598001,1779136252000,-76405.0,0.000295,2]
[422598038,1779136253000,-500.0,0.00037558,30]
[422598037,1779136253000,-500.0,0.00037558,120]
[422598031,1779136253000,-500.0,0.00037558,120]
[422598034,1779136253000,-500.0,0.00037558,120]
[422598032,1779136253000,-500.0,0.00037558,120]
[422598036,1779136253000,-500.0,0.00037558,120]
[422598033,1779136253000,-500.0,0.00037558,120]
[422598035,1779136253000,-500.0,0.00037558,120]
[422598042,1779136253000,-500.0,0.00037558,30]
[422598050,1779136253000,-500.0,0.00037558,120]
[422598041,1779136253000,-500.0,0.00037558,30]
[422598043,1779136253000,-500.0,0.00037558,30]
[422598046,1779136253000,-500.0,0.00037558,120]
[422598051,1779136253000,-500.0,0.00037558,120]
[422598049,1779136253000,-500.0,0.00037558,120]
[422598030,1779136253000,-151.0,0.00037555,14]
[422598047,1779136253000,-500.0,0.00037558,120]
[422598045,1779136253000,-500.0,0.00037558,120]
[422598048,1779136253000,-573.0866294,0.00037558,120]
[422598044,1779136253000,-500.0,0.00037558,30]
[422598052,1779136253000,-500.0,0.00037558,120]
[422598028,1779136253000,-157.69,0.00037536,60]
[422598020,1779136253000,-157.8082295,0.00037498,2]
[422598029,1779136253000,-300.34996306,0.00037539,5]
[422598054,1779136253000,-500.0,0.00037558,120]
[422598008,1779136253000,-51118.21020721,0.00037432,30]
[422598009,1779136253000,-2918.7675064,0.00037432,30]
[422598012,1779136253000,-7789.14680162,0.00037432,30]
[422598013,1779136253000,-49629.87090933,0.00037432,30]
[422598010,1779136253000,-6691.92348213,0.00021111,2]
[422598011,1779136253000,-65172.73575985,0.00037432,30]
[422598014,1779136253000,-39144.85979316,0.00037432,30]
[422598016,1779136253000,-157.69,0.00037436,60]
[422598026,1779136253000,-1283.65,0.000375,2]
[422598027,1779136253000,-248.0,0.000375,120]
[422598018,1779136253000,-300.0,0.0003747,2]
[422598015,1779136253000,-76744.76512091,0.00037432,30]
[422598023,1779136253000,-361.858181,0.000375,37]
[422598025,1779136253000,-1000.0,0.000375,30]
[422598017,1779136253000,-152.0,0.00037456,6]
[422598022,1779136253000,-600.0,0.000375,120]
[422598019,1779136253000,-400.0,0.0003747,2]
[422598021,1779136253000,-2763.43381629,0.000375,2]
[422598024,1779136253000,-1000.0,0.000375,30]
[422598039,1779136253000,-500.0,0.00037558,30]
[422598040,1779136253000,-500.0,0.00037558,30]
[422598064,1779136253000,-235.29957646,0.00037558,7]
[422598061,1779136253000,-500.0,0.00037558,2]
[422598055,1779136253000,-500.0,0.00037558,120]
[422598090,1779136253000,-150.0,0.00037694,2]
[422598088,1779136253000,-248.0,0.0003762,120]
[422598082,1779136253000,-500.0,0.00037558,30]
[422598086,1779136253000,-4411.28004785,0.0003759,2]
[422598084,1779136253000,-500.0,0.00037558,30]
[422598085,1779136253000,-500.0,0.00037558,30]
[422598087,1779136253000,-30865.0,0.000376,30]
[422598083,1779136253000,-500.0,0.00037558,30]
[422598092,1779136253000,-500.0,0.00037698,30]
[422598102,1779136253000,-157.69,0.00037836,60]
[422598094,1779136253000,-500.0,0.00037698,120]
[422598093,1779136253000,-283.75784038,0.00037698,120]
[422598095,1779136253000,-500.0,0.00037698,30]
[422598103,1779136253000,-502.0,0.00037843,13]
[422598091,1779136253000,-500.0,0.00037698,120]
[422598097,1779136253000,-248.0,0.0003775,120]